[Event "*** Titled Tuesday Blitz"]
[Site "Chess.com"]
[Date "2020.04.21"]
[Round "6"]
[White "731291"]
[Black "FranciscodelaF"]
[Result "1-0"]
[WhiteElo "2588"]
[BlackElo "2426"]
[TimeControl "180+1"]
[EndTime "11:08:49 PDT"]
[Termination "731291 won by resignation"]

1. d4 {[%clk 0:03:00.9]} 1... e6 {[%clk 0:02:57.8]} 2. e4 {[%clk 0:03:00.5]}
2... d5 {[%clk 0:02:57.2]} 3. Bd3 {[%clk 0:03:00.5]} 3... dxe4 {[%clk
0:02:56.8]} 4. Bxe4 {[%clk 0:03:01.4]} 4... Nf6 {[%clk 0:02:57.1]} 5. Bf3 {[%clk
0:03:00.8]} 5... c5 {[%clk 0:02:57.3]} 6. Ne2 {[%clk 0:03:00.4]} 6... Nc6 {[%clk
0:02:56.9]} 7. Be3 {[%clk 0:02:57.1]} 7... cxd4 {[%clk 0:02:57.1]} 8. Nxd4
{[%clk 0:02:56.9]} 8... Ne5 {[%clk 0:02:57.3]} 9. Nc3 {[%clk 0:02:54.1]} 9... a6
{[%clk 0:02:55.7]} 10. Qe2 {[%clk 0:02:49]} 10... Nxf3+ {[%clk 0:02:55.5]} 11.
Qxf3 {[%clk 0:02:47.5]} 11... e5 {[%clk 0:02:55.2]} 12. Nf5 {[%clk 0:02:31.1]}
12... Qa5 {[%clk 0:02:06.5]} 13. O-O-O {[%clk 0:01:24.8]} 13... e4 {[%clk
0:01:51.7]} 14. Nxg7+ {[%clk 0:00:43.5]} 14... Bxg7 {[%clk 0:01:50.5]} 15. Qg3
{[%clk 0:00:44.4]} 15... O-O {[%clk 0:01:38.1]} 16. Rd5 {[%clk 0:00:38.8]} 16...
b5 {[%clk 0:00:49]} 17. Rg5 {[%clk 0:00:34.4]} 17... Ng4 {[%clk 0:00:34.3]} 18.
h3 {[%clk 0:00:25.5]} 18... Nxe3 {[%clk 0:00:26.9]} 19. Rxg7+ {[%clk 0:00:24.1]}
19... Kh8 {[%clk 0:00:27.5]} 20. fxe3 {[%clk 0:00:22.8]} 20... b4 {[%clk
0:00:24.8]} 21. Rg5 {[%clk 0:00:20.5]} 21... Qd8 {[%clk 0:00:20.1]} 22. Nxe4
{[%clk 0:00:19.6]} 22... Be6 {[%clk 0:00:18.4]} 23. Rf1 {[%clk 0:00:14.8]} 23...
Rc8 {[%clk 0:00:14.2]} 24. Nf6 {[%clk 0:00:13.5]} 24... Qd3 {[%clk 0:00:10.9]}
25. Rf2 {[%clk 0:00:07.1]} 25... b3 {[%clk 0:00:09]} 26. axb3 {[%clk 0:00:03.8]}
26... Bxb3 {[%clk 0:00:09.3]} 27. Rg8+ {[%clk 0:00:03.1]} 27... Rxg8 {[%clk
0:00:09]} 28. Qxg8+ {[%clk 0:00:03.6]} 28... Rxg8 {[%clk 0:00:09.1]} 29. cxd3
{[%clk 0:00:04.5]} 29... Rc8+ {[%clk 0:00:09.2]} 30. Kd2 {[%clk 0:00:04.2]}
30... Kg7 {[%clk 0:00:10]} 31. Ne4 {[%clk 0:00:03.6]} 31... Rc2+ {[%clk
0:00:10.4]} 32. Ke1 {[%clk 0:00:04.5]} 32... Rc1+ {[%clk 0:00:11]} 33. Ke2
{[%clk 0:00:05.3]} 33... Bd1+ {[%clk 0:00:09.4]} 34. Kd2 {[%clk 0:00:05.5]}
34... Ra1 {[%clk 0:00:09.5]} 35. Rf1 {[%clk 0:00:06]} 35... Bh5 {[%clk
0:00:08.9]} 36. Rxa1 {[%clk 0:00:05.9]} 36... Bg6 {[%clk 0:00:09.8]} 37. Rxa6
{[%clk 0:00:06.8]} 1-0

[Event "*** Titled Tuesday Blitz"]
[Site "Chess.com"]
[Date "2020.04.21"]
[Round "6"]
[White "The_Machine04"]
[Black "DACF2905"]
[Result "1/2-1/2"]
[WhiteElo "2323"]
[BlackElo "2160"]
[TimeControl "180+1"]
[EndTime "11:08:49 PDT"]
[Termination "Game drawn by repetition"]

1. d4 {[%clk 0:03:00.9]} 1... Nf6 {[%clk 0:02:59.1]} 2. Bg5 {[%clk 0:02:55.6]}
2... e6 {[%clk 0:02:57.5]} 3. Nd2 {[%clk 0:02:51.2]} 3... d5 {[%clk 0:02:56.1]}
4. e3 {[%clk 0:02:51]} 4... c5 {[%clk 0:02:55.3]} 5. c3 {[%clk 0:02:49.2]} 5...
Nc6 {[%clk 0:02:54]} 6. f4 {[%clk 0:02:49.4]} 6... Be7 {[%clk 0:02:53.4]} 7. Bd3
{[%clk 0:02:46.9]} 7... h6 {[%clk 0:02:50.5]} 8. Bxf6 {[%clk 0:02:46.8]} 8...
Bxf6 {[%clk 0:02:49.9]} 9. Ngf3 {[%clk 0:02:47]} 9... cxd4 {[%clk 0:02:49]} 10.
exd4 {[%clk 0:02:46.8]} 10... Qb6 {[%clk 0:02:48.3]} 11. Rb1 {[%clk 0:02:45.7]}
11... a5 {[%clk 0:02:46.1]} 12. a4 {[%clk 0:02:43.9]} 12... O-O {[%clk
0:02:36.7]} 13. O-O {[%clk 0:02:32.5]} 13... e5 {[%clk 0:02:35.7]} 14. fxe5
{[%clk 0:02:29.2]} 14... Nxe5 {[%clk 0:02:35.8]} 15. Nxe5 {[%clk 0:02:28.1]}
15... Bxe5 {[%clk 0:02:36.4]} 16. Nf3 {[%clk 0:02:20.1]} 16... Bc7 {[%clk
0:02:31.5]} 17. Bc2 {[%clk 0:02:15.5]} 17... Bg4 {[%clk 0:02:30.5]} 18. Qd3
{[%clk 0:02:14.7]} 18... g6 {[%clk 0:02:30.9]} 19. b3 {[%clk 0:02:07.5]} 19...
Rae8 {[%clk 0:02:29.3]} 20. Rbe1 {[%clk 0:02:07.1]} 20... Kg7 {[%clk 0:02:05.4]}
21. Kh1 {[%clk 0:02:02.2]} 21... Bxf3 {[%clk 0:01:38.7]} 22. Qxf3 {[%clk
0:02:00.2]} 22... Qd6 {[%clk 0:01:37.8]} 23. g3 {[%clk 0:01:57.6]} 23... Re6
{[%clk 0:01:23.1]} 24. Rxe6 {[%clk 0:01:54.9]} 24... fxe6 {[%clk 0:01:21.5]} 25.
Qxf8+ {[%clk 0:01:54.2]} 25... Qxf8 {[%clk 0:01:20.6]} 26. Rxf8 {[%clk
0:01:55.1]} 26... Kxf8 {[%clk 0:01:20.7]} 27. Bxg6 {[%clk 0:01:55.7]} 27... e5
{[%clk 0:01:21.4]} 28. dxe5 {[%clk 0:01:51.2]} 28... Bxe5 {[%clk 0:01:19]} 29.
c4 {[%clk 0:01:51.4]} 29... dxc4 {[%clk 0:01:18.9]} 30. bxc4 {[%clk 0:01:52.3]}
30... b6 {[%clk 0:01:19.4]} 31. Kg2 {[%clk 0:01:51.8]} 31... Ke7 {[%clk
0:01:19.6]} 32. Kf3 {[%clk 0:01:50.1]} 32... Kf6 {[%clk 0:01:19.8]} 33. Be8
{[%clk 0:01:49.9]} 33... Bd4 {[%clk 0:01:19.2]} 34. Kg4 {[%clk 0:01:46]} 34...
Bc5 {[%clk 0:01:17.1]} 35. Kh5 {[%clk 0:01:44.4]} 35... Kg7 {[%clk 0:01:15.8]}
36. h4 {[%clk 0:01:43.3]} 36... Bf2 {[%clk 0:01:14.8]} 37. g4 {[%clk 0:01:43]}
37... Be3 {[%clk 0:01:12.9]} 38. g5 {[%clk 0:01:42.8]} 38... hxg5 {[%clk
0:01:13.1]} 39. hxg5 {[%clk 0:01:43.7]} 39... Bc5 {[%clk 0:01:12.8]} 40. g6
{[%clk 0:01:42.6]} 40... Bd4 {[%clk 0:01:12.5]} 41. Kg4 {[%clk 0:01:42.7]} 41...
Bc5 {[%clk 0:01:11.7]} 42. Kf5 {[%clk 0:01:43.3]} 42... Be3 {[%clk 0:01:11.7]}
43. Bf7 {[%clk 0:01:43.8]} 43... Bc5 {[%clk 0:01:11.7]} 44. Ke4 {[%clk
0:01:44.5]} 44... Bg1 {[%clk 0:01:10.9]} 45. Kd5 {[%clk 0:01:45.4]} 45... Bf2
{[%clk 0:01:08.7]} 46. Kc6 {[%clk 0:01:46.3]} 46... Bg1 {[%clk 0:01:08.7]} 47.
Kb5 {[%clk 0:01:47.2]} 47... Bf2 {[%clk 0:01:07.6]} 48. Ka6 {[%clk 0:01:48.1]}
48... Be3 {[%clk 0:01:07.2]} 49. Kb7 {[%clk 0:01:48.5]} 49... Bc5 {[%clk
0:01:06.8]} 50. Kc6 {[%clk 0:01:48.5]} 50... Be3 {[%clk 0:01:06.6]} 51. Kb5
{[%clk 0:01:48.9]} 51... Bf2 {[%clk 0:01:06]} 52. c5 {[%clk 0:01:49]} 52... Bxc5
{[%clk 0:01:05.6]} 53. Kc4 {[%clk 0:01:49.3]} 53... Bb4 {[%clk 0:01:05.5]} 54.
Kb5 {[%clk 0:01:50.2]} 54... Bc5 {[%clk 0:01:05.2]} 55. Kc6 {[%clk 0:01:50.2]}
55... Bd4 {[%clk 0:01:04.7]} 56. Be8 {[%clk 0:01:49.5]} 56... Kf8 {[%clk
0:01:04.2]} 57. Bf7 {[%clk 0:01:49.1]} 57... Kg7 {[%clk 0:01:03.8]} 58. Be8
{[%clk 0:01:39.4]} 58... Bc5 {[%clk 0:01:03.2]} 59. Kb5 {[%clk 0:01:38]} 59...
Bd4 {[%clk 0:01:03.2]} 60. Kc4 {[%clk 0:01:37.4]} 60... Bc5 {[%clk 0:00:57.8]}
61. Bf7 {[%clk 0:01:35.9]} 61... Bf2 {[%clk 0:00:57.2]} 62. Kd5 {[%clk 0:01:35]}
62... Bc5 {[%clk 0:00:58.1]} 63. Be8 {[%clk 0:01:33.7]} 63... Bf2 {[%clk
0:00:59]} 64. Ke4 {[%clk 0:01:32.4]} 64... Bc5 {[%clk 0:00:59.9]} 65. Kf5 {[%clk
0:01:32.7]} 65... Bg1 {[%clk 0:01:00.8]} 66. Kg5 {[%clk 0:01:32.8]} 66... Bc5
{[%clk 0:01:00.1]} 67. Kf5 {[%clk 0:01:33.3]} 67... Bg1 {[%clk 0:00:59.9]} 68.
Kg4 {[%clk 0:01:33.7]} 68... Bc5 {[%clk 0:01:00]} 69. Kf3 {[%clk 0:01:33.6]}
69... Ba3 {[%clk 0:00:59.9]} 70. Ke4 {[%clk 0:01:33.5]} 70... Bc5 {[%clk
0:00:59.2]} 71. Kd3 {[%clk 0:01:33.6]} 71... Bg1 {[%clk 0:00:57.4]} 72. Kd2
{[%clk 0:01:33.1]} 72... Bf2 {[%clk 0:00:56.7]} 73. Ke2 {[%clk 0:01:33.3]} 73...
Bc5 {[%clk 0:00:56.3]} 74. Kf1 {[%clk 0:01:33.6]} 74... Bf8 {[%clk 0:00:56.4]}
75. Ke2 {[%clk 0:01:33.1]} 75... Bc5 {[%clk 0:00:57.3]} 76. Kf3 {[%clk 0:01:33]}
76... Ba3 {[%clk 0:00:56.5]} 77. Ke3 {[%clk 0:01:33.1]} 77... Bc5+ {[%clk
0:00:57.4]} 78. Ke4 {[%clk 0:01:33.3]} 78... Ba3 {[%clk 0:00:56.1]} 79. Bf7
{[%clk 0:01:32.9]} 79... Bc5 {[%clk 0:00:57]} 80. Kd3 {[%clk 0:01:32.9]} 80...
Ba3 {[%clk 0:00:56.8]} 81. Kc2 {[%clk 0:01:33]} 81... Bc5 {[%clk 0:00:57.7]} 82.
Kb3 {[%clk 0:01:33.3]} 82... Bg1 {[%clk 0:00:57.7]} 83. Kc3 {[%clk 0:01:33.6]}
83... Bc5 {[%clk 0:00:58.6]} 84. Kc4 {[%clk 0:01:33.1]} 1/2-1/2

[Event "*** Titled Tuesday Blitz"]
[Site "Chess.com"]
[Date "2020.04.21"]
[Round "6"]
[White "Kildepiotr"]
[Black "joksijoksi"]
[Result "1-0"]
[WhiteElo "2537"]
[BlackElo "2369"]
[TimeControl "180+1"]
[EndTime "11:08:50 PDT"]
[Termination "Kildepiotr won by resignation"]

1. Nf3 {[%clk 0:03:00.9]} 1... Nf6 {[%clk 0:02:59.2]} 2. g3 {[%clk 0:03:00.7]}
2... g6 {[%clk 0:02:59.5]} 3. Bg2 {[%clk 0:03:00.7]} 3... Bg7 {[%clk 0:03:00.2]}
4. O-O {[%clk 0:03:01.3]} 4... O-O {[%clk 0:03:00]} 5. d4 {[%clk 0:03:01.8]}
5... d6 {[%clk 0:03:00.1]} 6. Nbd2 {[%clk 0:03:01.3]} 6... Nc6 {[%clk
0:02:53.6]} 7. e4 {[%clk 0:03:01]} 7... e5 {[%clk 0:02:54.2]} 8. dxe5 {[%clk
0:03:01.4]} 8... dxe5 {[%clk 0:02:53.9]} 9. c3 {[%clk 0:03:01]} 9... a5 {[%clk
0:02:48.8]} 10. a4 {[%clk 0:02:55.7]} 10... b6 {[%clk 0:02:44.8]} 11. Qb3 {[%clk
0:02:49.5]} 11... Nd7 {[%clk 0:02:32.7]} 12. Rd1 {[%clk 0:02:47.2]} 12... Nc5
{[%clk 0:02:27.2]} 13. Qc2 {[%clk 0:02:45.6]} 13... Qe7 {[%clk 0:02:20.8]} 14.
Nb3 {[%clk 0:02:30.3]} 14... Be6 {[%clk 0:01:11.3]} 15. Nxc5 {[%clk 0:02:29.2]}
15... Qxc5 {[%clk 0:01:12.2]} 16. Be3 {[%clk 0:02:28.9]} 16... Qe7 {[%clk
0:01:11]} 17. Nd2 {[%clk 0:02:20.4]} 17... Rfd8 {[%clk 0:01:08.1]} 18. Bf1
{[%clk 0:02:17.1]} 18... f6 {[%clk 0:00:57.5]} 19. Bc4 {[%clk 0:02:15.1]} 19...
Bxc4 {[%clk 0:00:55.7]} 20. Nxc4 {[%clk 0:02:14]} 20... Rxd1+ {[%clk 0:00:56.6]}
21. Rxd1 {[%clk 0:02:13.2]} 21... Rd8 {[%clk 0:00:55.8]} 22. b3 {[%clk
0:02:10.8]} 22... Bf8 {[%clk 0:00:50.4]} 23. Kf1 {[%clk 0:02:06.7]} 23... Kf7
{[%clk 0:00:47.4]} 24. f3 {[%clk 0:02:04.6]} 24... Rxd1+ {[%clk 0:00:45.9]} 25.
Qxd1 {[%clk 0:02:03.7]} 25... Qd8 {[%clk 0:00:46.3]} 26. Ke2 {[%clk 0:01:53.3]}
26... Qxd1+ {[%clk 0:00:44.9]} 27. Kxd1 {[%clk 0:01:54.2]} 27... Ke6 {[%clk
0:00:45.1]} 28. Ke2 {[%clk 0:01:52.6]} 28... Nd8 {[%clk 0:00:44]} 29. f4 {[%clk
0:01:48.8]} 29... Nb7 {[%clk 0:00:40.9]} 30. fxe5 {[%clk 0:01:46.9]} 30... fxe5
{[%clk 0:00:39.6]} 31. Nb2 {[%clk 0:01:39.3]} 31... Bc5 {[%clk 0:00:38.1]} 32.
Nd3 {[%clk 0:01:34]} 32... Bxe3 {[%clk 0:00:37.7]} 33. Kxe3 {[%clk 0:01:34.9]}
33... Kd6 {[%clk 0:00:26.7]} 34. b4 {[%clk 0:01:33.3]} 34... Ke6 {[%clk
0:00:26.6]} 35. Nb2 {[%clk 0:01:29]} 35... axb4 {[%clk 0:00:25.1]} 36. cxb4
{[%clk 0:01:28.8]} 36... c5 {[%clk 0:00:24.8]} 37. b5 {[%clk 0:01:25.7]} 37...
Na5 {[%clk 0:00:22.9]} 38. Kd3 {[%clk 0:01:25.8]} 38... Kd6 {[%clk 0:00:22.5]}
39. Kc3 {[%clk 0:01:20.6]} 39... h6 {[%clk 0:00:21.5]} 40. Nd1 {[%clk
0:01:19.4]} 40... c4 {[%clk 0:00:20.5]} 41. Kb4 {[%clk 0:01:18]} 41... h5 {[%clk
0:00:18.5]} 42. Ne3 {[%clk 0:01:16.4]} 42... c3 {[%clk 0:00:18]} 43. Kxc3 {[%clk
0:01:16.1]} 43... Kc5 {[%clk 0:00:18.4]} 44. Nd5 {[%clk 0:01:09.5]} 44... Nc4
{[%clk 0:00:16.1]} 45. Nf6 {[%clk 0:01:09.3]} 45... Ne3 {[%clk 0:00:14.6]} 46.
Nd7+ {[%clk 0:01:07.4]} 46... Kd6 {[%clk 0:00:14.9]} 47. Nxb6 {[%clk 0:01:06.4]}
47... Nf1 {[%clk 0:00:15.8]} 48. Nc4+ {[%clk 0:01:02.7]} 48... Kc5 {[%clk
0:00:16]} 49. Nxe5 {[%clk 0:01:02.5]} 49... Nxh2 {[%clk 0:00:16.9]} 50. Nd3+
{[%clk 0:00:56.6]} 50... Kb6 {[%clk 0:00:16.1]} 51. Kb4 {[%clk 0:00:55.8]} 51...
Nf1 {[%clk 0:00:15.9]} 52. a5+ {[%clk 0:00:55.4]} 52... Kc7 {[%clk 0:00:16.2]}
53. b6+ {[%clk 0:00:53.9]} 53... Kb8 {[%clk 0:00:16]} 54. a6 {[%clk 0:00:52.6]}
54... Nxg3 {[%clk 0:00:16.3]} 55. Ne5 {[%clk 0:00:49.9]} 55... Nxe4 {[%clk
0:00:15.1]} 56. Nc6+ {[%clk 0:00:49.3]} 56... Kc8 {[%clk 0:00:14.1]} 57. b7+
{[%clk 0:00:49.5]} 1-0

[Event "*** Titled Tuesday Blitz"]
[Site "Chess.com"]
[Date "2020.04.21"]
[Round "6"]
[White "Juanovic"]
[Black "profofchess"]
[Result "1-0"]
[WhiteElo "2160"]
[BlackElo "2369"]
[TimeControl "180+1"]
[EndTime "11:08:51 PDT"]
[Termination "Juanovic won on time"]

1. e4 {[%clk 0:03:00.9]} 1... e6 {[%clk 0:02:59.9]} 2. d4 {[%clk 0:03:00.8]}
2... d5 {[%clk 0:03:00.4]} 3. Nc3 {[%clk 0:03:00.9]} 3... Bb4 {[%clk 0:02:59.8]}
4. e5 {[%clk 0:03:01.3]} 4... c5 {[%clk 0:02:59.3]} 5. a3 {[%clk 0:03:01.8]}
5... Bxc3+ {[%clk 0:02:59.5]} 6. bxc3 {[%clk 0:03:02.7]} 6... Ne7 {[%clk
0:02:59]} 7. Nf3 {[%clk 0:03:02]} 7... b6 {[%clk 0:02:58.5]} 8. Bb5+ {[%clk
0:03:00.9]} 8... Bd7 {[%clk 0:02:57.8]} 9. Bd3 {[%clk 0:03:01.1]} 9... Ba4
{[%clk 0:02:57.8]} 10. O-O {[%clk 0:02:58]} 10... Nd7 {[%clk 0:02:56.1]} 11. Re1
{[%clk 0:02:57.8]} 11... h6 {[%clk 0:02:54.8]} 12. h3 {[%clk 0:02:57]} 12... Qc7
{[%clk 0:02:53.7]} 13. Be3 {[%clk 0:02:54.8]} 13... O-O-O {[%clk 0:02:47.8]} 14.
Ba6+ {[%clk 0:02:47.5]} 14... Kb8 {[%clk 0:02:46.5]} 15. Qe2 {[%clk 0:02:45.3]}
15... Ka8 {[%clk 0:02:13.7]} 16. Bb5 {[%clk 0:02:40]} 16... Bxb5 {[%clk
0:01:57.9]} 17. Qxb5 {[%clk 0:02:40.9]} 17... Qc6 {[%clk 0:01:46.8]} 18. a4
{[%clk 0:02:33.5]} 18... Rc8 {[%clk 0:01:27.2]} 19. Ra2 {[%clk 0:02:21.4]} 19...
Nf5 {[%clk 0:01:21.2]} 20. Rea1 {[%clk 0:02:13.5]} 20... Rc7 {[%clk 0:01:10.4]}
21. Qb2 {[%clk 0:02:10.1]} 21... Rb8 {[%clk 0:01:08.6]} 22. Bd2 {[%clk
0:02:06.2]} 22... f6 {[%clk 0:00:58.8]} 23. exf6 {[%clk 0:02:05.8]} 23... gxf6
{[%clk 0:00:58.1]} 24. Bf4 {[%clk 0:02:04.2]} 24... cxd4 {[%clk 0:00:50.9]} 25.
Bxc7 {[%clk 0:02:03]} 25... dxc3 {[%clk 0:00:49.8]} 26. Qb5 {[%clk 0:01:59.8]}
26... Qxc7 {[%clk 0:00:48.6]} 27. a5 {[%clk 0:02:00]} 27... bxa5 {[%clk
0:00:47.3]} 28. Qxa5 {[%clk 0:01:58.1]} 28... Qxa5 {[%clk 0:00:47]} 29. Rxa5
{[%clk 0:01:58.1]} 29... Rb7 {[%clk 0:00:47.3]} 30. Nd4 {[%clk 0:01:57.9]} 30...
Nxd4 {[%clk 0:00:46.9]} 31. R1a3 {[%clk 0:01:55.9]} 31... Ne5 {[%clk 0:00:28.3]}
32. Rc5 {[%clk 0:01:40.1]} 32... Nc4 {[%clk 0:00:28.2]} 33. Ra6 {[%clk
0:01:35.2]} 33... Kb8 {[%clk 0:00:24.8]} 34. Kh2 {[%clk 0:01:33.2]} 34... Rb6
{[%clk 0:00:23.9]} 35. Ra2 {[%clk 0:01:31.3]} 35... Rb5 {[%clk 0:00:23]} 36.
Rxb5+ {[%clk 0:01:27]} 36... Nxb5 {[%clk 0:00:23.9]} 37. g4 {[%clk 0:01:22.5]}
37... Nd4 {[%clk 0:00:23.7]} 38. Kg3 {[%clk 0:01:21.5]} 38... a5 {[%clk
0:00:21.6]} 39. Kh4 {[%clk 0:01:21.8]} 39... Kc7 {[%clk 0:00:15.5]} 40. Kh5
{[%clk 0:01:22]} 40... Kd7 {[%clk 0:00:15.8]} 41. Kxh6 {[%clk 0:01:22.5]} 41...
Ke7 {[%clk 0:00:16]} 42. Kg7 {[%clk 0:01:22.7]} 42... Nf3 {[%clk 0:00:14.7]} 43.
Kg6 {[%clk 0:01:15.9]} 43... e5 {[%clk 0:00:14.2]} 44. Kf5 {[%clk 0:01:15.9]}
44... e4 {[%clk 0:00:13.8]} 45. Kf4 {[%clk 0:01:15.4]} 45... Nh4 {[%clk
0:00:11]} 46. Kg3 {[%clk 0:01:12.9]} 46... Nf3 {[%clk 0:00:09.1]} 47. h4 {[%clk
0:01:13.1]} 47... Ke6 {[%clk 0:00:08.5]} 48. h5 {[%clk 0:01:12.9]} 48... f5
{[%clk 0:00:08.9]} 49. h6 {[%clk 0:01:03.7]} 49... Kf6 {[%clk 0:00:09]} 50. h7
{[%clk 0:00:57.2]} 50... Kg7 {[%clk 0:00:09.1]} 51. gxf5 {[%clk 0:00:57.3]}
51... Kxh7 {[%clk 0:00:09]} 52. Kg4 {[%clk 0:00:56.2]} 52... Kg7 {[%clk
0:00:09]} 53. Ra1 {[%clk 0:00:50.9]} 53... d4 {[%clk 0:00:08.6]} 54. Kf4 {[%clk
0:00:50.7]} 54... d3 {[%clk 0:00:08.4]} 55. Kxe4 {[%clk 0:00:49.5]} 1-0

[Event "*** Titled Tuesday Blitz"]
[Site "Chess.com"]
[Date "2020.04.21"]
[Round "6"]
[White "Funkmaus"]
[Black "CroissantNeuf"]
[Result "0-1"]
[WhiteElo "2205"]
[BlackElo "2372"]
[TimeControl "180+1"]
[EndTime "11:08:51 PDT"]
[Termination "CroissantNeuf won by resignation"]

1. d4 {[%clk 0:02:56.7]} 1... Nf6 {[%clk 0:02:59.7]} 2. Nf3 {[%clk 0:02:57.4]}
2... e6 {[%clk 0:02:58.9]} 3. g3 {[%clk 0:02:57.9]} 3... c5 {[%clk 0:02:54.9]}
4. c3 {[%clk 0:02:56.9]} 4... cxd4 {[%clk 0:02:51]} 5. cxd4 {[%clk 0:02:57.2]}
5... d5 {[%clk 0:02:51.6]} 6. Nc3 {[%clk 0:02:57.7]} 6... Bb4 {[%clk 0:02:50.3]}
7. Bg2 {[%clk 0:02:55.8]} 7... O-O {[%clk 0:02:49.9]} 8. O-O {[%clk 0:02:55.6]}
8... b6 {[%clk 0:02:48.8]} 9. Bg5 {[%clk 0:02:48.5]} 9... Nbd7 {[%clk
0:02:47.5]} 10. e4 {[%clk 0:02:40.6]} 10... Bxc3 {[%clk 0:02:43.7]} 11. bxc3
{[%clk 0:02:41.4]} 11... h6 {[%clk 0:02:41.1]} 12. Bh4 {[%clk 0:02:14.9]} 12...
dxe4 {[%clk 0:02:20.2]} 13. Ne5 {[%clk 0:02:06.8]} 13... g5 {[%clk 0:02:08.8]}
14. Nc6 {[%clk 0:00:59.3]} 14... Qc7 {[%clk 0:02:04.6]} 15. Ne7+ {[%clk
0:00:58.3]} 15... Kg7 {[%clk 0:02:04.8]} 16. f3 {[%clk 0:00:47.9]} 16... Qxc3
{[%clk 0:01:24.4]} 17. fxe4 {[%clk 0:00:43.8]} 17... Nxe4 {[%clk 0:01:07.4]} 18.
Rc1 {[%clk 0:00:25]} 18... Qe3+ {[%clk 0:01:06.9]} 19. Kh1 {[%clk 0:00:20.4]}
19... gxh4 {[%clk 0:01:05.7]} 20. Qg4+ {[%clk 0:00:16.2]} 20... Kh8 {[%clk
0:01:00.1]} 21. Bxe4 {[%clk 0:00:15.7]} 21... Nf6 {[%clk 0:00:32.5]} 22. Rxf6
{[%clk 0:00:10.8]} 22... Qxc1+ {[%clk 0:00:32.4]} 23. Kg2 {[%clk 0:00:11.2]}
23... Qd2+ {[%clk 0:00:28.7]} 24. Kh3 {[%clk 0:00:10.5]} 24... Qg5 {[%clk
0:00:24.9]} 25. Qxg5 {[%clk 0:00:09.5]} 25... hxg5 {[%clk 0:00:24.9]} 26. Rh6+
{[%clk 0:00:09.8]} 26... Kg7 {[%clk 0:00:24.6]} 27. Rh7+ {[%clk 0:00:10]} 27...
Kf6 {[%clk 0:00:24.8]} 28. Bxa8 {[%clk 0:00:08.9]} 28... Kxe7 {[%clk 0:00:23.3]}
29. gxh4 {[%clk 0:00:09.1]} 29... gxh4 {[%clk 0:00:22.8]} 30. Kxh4 {[%clk
0:00:08.9]} 30... Bd7 {[%clk 0:00:20.8]} 31. Be4 {[%clk 0:00:08.3]} 31... Rc8
{[%clk 0:00:20.1]} 32. Kg3 {[%clk 0:00:08]} 32... Rc4 {[%clk 0:00:19.6]} 33. Kf4
{[%clk 0:00:08.8]} 33... Rxd4 {[%clk 0:00:19.3]} 34. Ke3 {[%clk 0:00:09.5]}
34... Ra4 {[%clk 0:00:18]} 35. Rh4 {[%clk 0:00:10.3]} 35... Bc6 {[%clk
0:00:15.2]} 0-1

[Event "*** Titled Tuesday Blitz"]
[Site "Chess.com"]
[Date "2020.04.21"]
[Round "6"]
[White "Gennady_Kozlov"]
[Black "mrsavic77"]
[Result "0-1"]
[WhiteElo "2575"]
[BlackElo "2756"]
[TimeControl "180+1"]
[EndTime "11:08:52 PDT"]
[Termination "mrsavic77 won by resignation"]

1. b3 {[%clk 0:02:55]} 1... a5 {[%clk 0:02:56.3]} 2. a4 {[%clk 0:02:54.4]} 2...
Nf6 {[%clk 0:02:55.4]} 3. Bb2 {[%clk 0:02:54.9]} 3... b6 {[%clk 0:02:55.7]} 4.
e3 {[%clk 0:02:55.1]} 4... Bb7 {[%clk 0:02:56.1]} 5. f4 {[%clk 0:02:55.8]} 5...
g6 {[%clk 0:02:44.9]} 6. Nf3 {[%clk 0:02:55.8]} 6... Bg7 {[%clk 0:02:45.3]} 7.
Be2 {[%clk 0:02:56.5]} 7... O-O {[%clk 0:02:44.3]} 8. O-O {[%clk 0:02:57]} 8...
d6 {[%clk 0:02:44.1]} 9. Na3 {[%clk 0:02:55.9]} 9... Nbd7 {[%clk 0:02:44.2]} 10.
Rb1 {[%clk 0:02:55.9]} 10... Re8 {[%clk 0:02:42.4]} 11. Nc4 {[%clk 0:02:53.6]}
11... c6 {[%clk 0:02:35.1]} 12. Qe1 {[%clk 0:02:49.2]} 12... b5 {[%clk 0:02:27]}
13. axb5 {[%clk 0:02:47.9]} 13... cxb5 {[%clk 0:02:27.9]} 14. Na3 {[%clk
0:02:48.2]} 14... b4 {[%clk 0:02:25]} 15. Nc4 {[%clk 0:02:48.8]} 15... Qc7
{[%clk 0:02:23.5]} 16. Rc1 {[%clk 0:02:34.3]} 16... a4 {[%clk 0:02:21.2]} 17.
bxa4 {[%clk 0:02:32.6]} 17... Rxa4 {[%clk 0:02:21.7]} 18. Rb1 {[%clk 0:02:23.1]}
18... Bd5 {[%clk 0:02:20.2]} 19. d3 {[%clk 0:02:17.3]} 19... Bxc4 {[%clk
0:02:16.8]} 20. dxc4 {[%clk 0:02:18.2]} 20... e5 {[%clk 0:02:14.5]} 21. fxe5
{[%clk 0:02:15]} 21... dxe5 {[%clk 0:02:12.4]} 22. Qd2 {[%clk 0:02:10.5]} 22...
Bh6 {[%clk 0:02:07.4]} 23. Rfe1 {[%clk 0:02:00.7]} 23... Ne4 {[%clk 0:02:03.8]}
24. Qc1 {[%clk 0:01:59.5]} 24... Qc5 {[%clk 0:02:02.2]} 25. Bd3 {[%clk 0:01:59]}
25... Nef6 {[%clk 0:01:53.4]} 26. Ra1 {[%clk 0:01:29.2]} 26... Rxa1 {[%clk
0:01:47.1]} 27. Qxa1 {[%clk 0:01:30.1]} 27... Ng4 {[%clk 0:01:45.6]} 28. h3
{[%clk 0:01:10.7]} 28... Bxe3+ {[%clk 0:01:42]} 29. Kf1 {[%clk 0:01:10.2]} 29...
Ngf6 {[%clk 0:01:35.1]} 30. Qa6 {[%clk 0:00:55]} 30... Nh5 {[%clk 0:01:31.2]}
31. g4 {[%clk 0:00:47.9]} 31... e4 {[%clk 0:01:22.8]} 32. Bxe4 {[%clk
0:00:44.6]} 32... Ng3+ {[%clk 0:01:21.7]} 33. Kg2 {[%clk 0:00:43.1]} 33... Nxe4
{[%clk 0:01:22.6]} 34. Qb7 {[%clk 0:00:41.2]} 34... Qd6 {[%clk 0:01:16.2]} 35.
Be5 {[%clk 0:00:35.7]} 35... Rxe5 {[%clk 0:01:07]} 36. Rxe3 {[%clk 0:00:33.6]}
36... Ndf6 {[%clk 0:00:50.1]} 37. Nxe5 {[%clk 0:00:23.9]} 37... Qd2+ {[%clk
0:00:49.5]} 38. Kh1 {[%clk 0:00:19.5]} 38... Qc1+ {[%clk 0:00:49]} 39. Kg2
{[%clk 0:00:19.3]} 39... Qxc2+ {[%clk 0:00:47.5]} 40. Kh1 {[%clk 0:00:20]} 40...
Qc1+ {[%clk 0:00:43.7]} 41. Kg2 {[%clk 0:00:20.1]} 41... Qb2+ {[%clk 0:00:42.4]}
42. Kh1 {[%clk 0:00:20.3]} 42... Qxe5 {[%clk 0:00:42.6]} 43. Qc8+ {[%clk
0:00:20.3]} 43... Kg7 {[%clk 0:00:42.7]} 44. g5 {[%clk 0:00:18.9]} 44... Nf2+
{[%clk 0:00:39.6]} 45. Kg2 {[%clk 0:00:19.1]} 45... Qxe3 {[%clk 0:00:40.5]} 46.
gxf6+ {[%clk 0:00:19.2]} 46... Kxf6 {[%clk 0:00:40.3]} 47. Qh8+ {[%clk
0:00:17.6]} 47... Kg5 {[%clk 0:00:38.1]} 48. h4+ {[%clk 0:00:16.9]} 48... Kg4
{[%clk 0:00:36.8]} 49. Qc8+ {[%clk 0:00:16.1]} 49... f5 {[%clk 0:00:36.8]} 50.
Qc6 {[%clk 0:00:15]} 50... Ne4 {[%clk 0:00:36.4]} 51. h5 {[%clk 0:00:14.8]} 0-1